Cogmind - Beta 14 @@@ ROGUE MODE // 2024.11.12 @ 16:54:57 Player: Shimmyarah Result: Destroyed by KQ-QT0(R) with Subdweller Shrapnel Launcher Performance ------------- Evolutions (0) 0 Regions Visited (2) 400 Robots Destroyed (32) 160 Value Destroyed (463) 463 Prototype IDs (0) 0 Alien Tech Used (0) 0 Bonus (0) 0 TOTAL SCORE: 1023 Bonus ------- None Cogmind --------- Core Integrity 0/250 Matter 108/300 Energy 72/100 System Corruption 2% Temperature Cool (0) Movement Core (500) Ox9 Location -10/Subcaves Parts ------- > --- POWER (1) -------- (None) > --- PROPULSION (2) --- (None) > --- UTILITY (2) ------ Large Storage Unit Seismic Detector > --- WEAPON (2) ------- Subdweller Beam Cannon > --- INVENTORY (15) --- Light Treads Light Treads Subdweller Monowheel Medium Matter Pod (100) Subdweller Optics Transport Network Coupler Targeting Computer ECM Suite Weapon Shielding Authchip [Storage] Tractor Beam Beam Cannon Grenade Launcher Mining Claw Peak State ------------ > --- POWER ------------ Ion Engine > --- PROPULSION ------- Wheel Wheel > --- UTILITY ---------- Large Storage Unit Seismic Detector > --- WEAPON ----------- Medium Laser Medium Laser > --- INVENTORY -------- Light Ion Engine Light Treads Light Treads Small Storage Unit Large Storage Unit Medium Matter Pod Weight Redist. System Transport Network Coupler Authchip [R/Combat] Authchip [Storage] Tractor Beam Grenade Launcher Mining Laser [Rating: 9] Favorites ----------- Power Ion Engine Engine Ion Engine Propulsion Wheel Treads Light Treads Leg Aluminum Leg Wheel Wheel Utility Seismic Detector Device Seismic Detector Storage Large Storage Unit Weapon Medium Laser Energy Gun Medium Laser Energy Cannon Subdweller Beam Cannon Launcher Grenade Launcher Slashing Weapon Mining Claw Build | -11 -10 -10 ------- Run | Yrd Mat Sub Slots Evolved . | . . . Power . | . . . Propulsion . | . . . Utility . | . . . Weapon . | . . . Parts Attached 31 | 9 11 11 Power 2 | 1 . 1 Engine 2 | 1 . 1 Core . | . . . Reactor . | . . . Propulsion 7 | 4 3 . Treads 1 | . 1 . Leg 2 | 2 . . Wheel 4 | 2 2 . Hover . | . . . Flight . | . . . Utility 7 | 2 5 . Device 3 | 1 2 . Storage 4 | 1 3 . Processor . | . . . Hackware . | . . . Protection . | . . . Artifact . | . . . Weapon 15 | 2 3 10 Energy Gun 6 | 2 2 2 Energy Cannon 1 | . . 1 Ballistic Gun . | . . . Ballistic Cannon . | . . . Launcher 4 | . . 4 Special Weapon . | . . . Impact Weapon . | . . . Slashing Weapon 4 | . 1 3 Piercing Weapon . | . . . Special Melee Weapon . | . . . Unidentified Prototypes . | . . . Parts Lost 8 | . 1 7 Power 2 | . . 2 Propulsion 3 | . 1 2 Utility . | . . . Weapon 3 | . . 3 Highest Loss Streak 5 | . 1 5 To Critical Strikes . | . . . Average Slot Usage (%) 99 | . 99 99 Engine 13 | . 14 13 Wheel 26 | . 26 28 Device 14 | . 14 14 Storage 14 | . 14 14 Energy Gun 23 | . 27 14 Launcher 1 | . . 5 Slashing Weapon 2 | . . 7 Peak Build Rating 9 | 8 9 9 Average Rating 8 | 6 8 8 On Entrance 5 | . 8 9 Naked Turns . | . . . Heaviest Build 31 | 15 30 31 Greatest Support 20 | 20 20 20 Greatest Overweight (x) 2 | . 2 1 Average Overweight (x) . | . . 1 Largest Inventory Capacity 15 | 8 15 15 Average Capacity 13 | 7 13 15 Most Carried 15 | 8 15 15 Average Carried 12 | 6 12 14 Final Capacity 15 | 8 15 15 Final Carried 15 | 8 15 14 Class Distribution -------------------- 100% | Mutant Dominant Class ---------------- Mutant | -10/Materials Mutant | -10/Subcaves Resources | -11 -10 -10 ----------- Run | Yrd Mat Sub Matter Collected 527 | 290 160 77 Remotely 96 | 96 . . Salvage Created 768 | 205 430 133 Parts 72 | 15 38 19 Haulers Intercepted 1 | . 1 . Recyclers Shooed . | . . . Parts Field Recycled . | . . . Retrieved Matter . | . . . Parts Self-Destructed 4 | . . 4 Prevented . | . . . Kills | -11 -10 -10 ------- Run | Yrd Mat Sub Combat Hostiles Destroyed 18 | . 11 7 Guns 12 | . 11 1 AOE 6 | . . 6 Classes Destroyed 8 | 3 4 1 Worker 4 | 2 2 . Tunneler 5 | 5 . . Hauler 1 | . 1 . Recycler 2 | 1 1 . Watcher 2 | . 2 . Swarmer 11 | . 9 2 Grunt 2 | . 2 . Subdweller 5 | . . 5 Best Kill Streak 3 | 2 3 3 Combat Bots Only 3 | . 3 3 Max Kills in Single Turn 2 | 1 1 2 Gunslinging . | . . . Exploded 2 | . . 2 Melee . | . . . Uniques/NPCs Destroyed . | . . . Combat | -11 -10 -10 -------- Run | Yrd Mat Sub Hostile Shots Fired 74 | . 45 29 Missed 24 | . 12 12 Damage Taken 853 | . 267 586 Core 253 | . 60 193 Absorbed by Shields . | . . . Regen/Repaired (Parts) 92 | . 92 . Core Remaining (%) 100 | 100 . . Volleys Fired 91 | 19 50 22 Largest 2 | 2 2 2 Hottest 100 | 100 100 80 Shots Fired 168 | 38 94 36 Gun 148 | 38 94 16 Cannon 2 | . . 2 Launcher 18 | . . 18 Special . | . . . Kinetic . | . . . Thermal 150 | 38 94 18 Explosive 18 | . . 18 Electromagnetic . | . . . Robot Hit Streak 8 | 7 8 8 Robot Miss Streak 4 | 2 4 4 Penetration Max . | . . . Secondary Targets . | . . . Shots Hit Robots 86 | 26 52 8 Core Hits 42 | 9 22 11 Critical Kills . | . . . Critical Parts Destroyed . | . . . Critical Strikes 12 | 3 8 1 Burn 12 | 3 8 1 Melee Attacks 19 | . 3 16 Impact . | . . . Slashing 19 | . 3 16 Piercing . | . . . Sneak Attacks . | . . . Combat Hostiles . | . . . Follow-up Attacks . | . . . Damage Inflicted 1643 | 301 693 649 Guns 1060 | 301 684 75 Cannons 52 | . . 52 Explosions 522 | . . 522 Melee . | . . . Ramming 9 | . 9 . Kinetic . | . . . Thermal 1112 | 301 684 127 Explosive 522 | . . 522 Electromagnetic . | . . . Impact . | . . . Slashing . | . . . Piercing . | . . . Highest Corruption 2 | . 2 2 Average Corruption 2 | . 2 2 Corruption Purged . | . . . Corruption Blocked . | . . . Effects 13 | . 4 9 Message Errors 3 | . 1 2 Matter Fused 2 | . . 2 Heat Flow Errors 2 | . 1 1 Energy Discharges 2 | . 1 1 Parts Fused 1 | . 1 . Data Loss (major) 1 | . . 1 Alerts 1 | . . 1 Weapon Failures 1 | . . 1 Overload Shots . | . . . Overflow Damage 28 | . . 28 Projectiles . | . . . Explosions 28 | . . 28 Melee . | . . . Knockbacks . | . . . Impact . | . . . Kinetic . | . . . Secondary . | . . . Self-Inflicted Damage 101 | . 4 97 Shots 4 | . . 4 Rammed 1 | . 1 . Targets Rammed 1 | . 1 . Kicked . | . . . Crushed . | . . . Highest Temperature 388 | 156 388 110 Average Temperature 91 | 67 101 70 Received Heat Transfer 84 | . 24 60 Effects 2 | . 2 . Shutdowns 1 | . 1 . Interference 1 | . 1 . Siege Activations . | . . . Robots Corrupted . | . . . Combat Hostiles . | . . . Parts Fried . | . . . Impact Corruptions . | . . . Robots Melted . | . . . Combat Hostiles . | . . . Parts Melted 3 | . 3 . Heat Transferred 4107 | 1110 2627 370 Parts Sabotaged . | . . . Parts Stolen . | . . . Parts Stripped . | . . . Power Chain Reactions . | . . . Alert | -11 -10 -10 ------- Run | Yrd Mat Sub Peak Influence 247 | 40 247 . Initial 26 | . 26 . Average 66 | 22 74 . Maximum Alert Level 1 | . 1 . Low Security (%) 94 | 100 93 . Level 1 5 | . 6 . Level 2 . | . . . Level 3 . | . . . Level 4 . | . . . Level 5 . | . . . High Security . | . . . Max Security . | . . . Squads Dispatched . | . . . Investigation . | . . . Extermination . | . . . Reinforcement . | . . . Assault . | . . . Garrison . | . . . Intercept . | . . . Searches Triggered . | . . . Construction Impeded . | . . . Haulers Reinforced . | . . . Active Scanning Responses . | . . . Cargo Convoy Interrupts . | . . . Stealth | -11 -10 -10 --------- Run | Yrd Mat Sub Distress Signals 2 | . 2 . Communications Jammed . | . . . Distress Signals . | . . . Times Spotted 33 | . 22 11 Peak Tracking Total 4 | . 4 3 Tactical Retreats 3 | . 2 1 Traps | -11 -10 -10 ------- Run | Yrd Mat Sub Traps Triggered 1 | . 1 . Indirectly . | . . . Trap Hack Attempts . | . . . Triggered . | . . . Disarmed . | . . . Reprogrammed . | . . . Reused . | . . . Traps Extracted . | . . . Installed . | . . . Triggered . | . . . Machines | -11 -10 -10 ---------- Run | Yrd Mat Sub Machines Disabled . | . . . Max in Single Turn . | . . . Machines Repaired . | . . . Machines Dismantled . | . . . Machines Sabotaged . | . . . Overloaded Fab Kills . | . . . Hacking | -11 -10 -10 --------- Run | Yrd Mat Sub Machines Accessed 9 | . 9 . Terminals 7 | . 7 . Fabricators . | . . . Repair Stations 1 | . 1 . Recycling Units 1 | . 1 . Scanalyzers . | . . . Garrison Access . | . . . Total Hacks 42 | . 42 . Successful 26 | . 26 . Failed 16 | . 16 . Catastrophic 3 | . 3 . Database Lockouts . | . . . Manual 38 | . 38 . Terminals 36 | . 36 . Fabricators . | . . . Repair Stations 4 | . 4 . Recycling Units 2 | . 2 . Scanalyzers . | . . . Garrison Access . | . . . Terminal Hacks 6 | . 6 . Part Schematic 4 | . 4 . Robot Analysis 1 | . 1 . Terminal Index 1 | . 1 . Fabricator Hacks . | . . . Repair Station Hacks 4 | . 4 . Scan Component 2 | . 2 . Repair 2 | . 2 . Recycling Unit Hacks . | . . . Scanalyzer . | . . . Garrison Access Hacks . | . . . Unauthorized Hacks 16 | . 16 . Terminals 14 | . 14 . Track 1 | . 1 . Botnet 6 | . 6 . Operators 1 | . 1 . Skim 6 | . 6 . Fabricators . | . . . Repair Stations . | . . . Recycling Units 2 | . 2 . Reject 1 | . 1 . Mask 1 | . 1 . Scanalyzers . | . . . Garrison Access . | . . . Data Cores Recovered . | . . . Used . | . . . Hacking Detections 8 | . 8 . Full Trace Events 1 | . 1 . Feedback Events . | . . . Feedback Blocked . | . . . Robot Schematics Acquired . | . . . Robots Built . | . . . Authchips . | . . . Time . | . . . Total Robot Build Rating . | . . . Part Schematics Acquired 4 | . 4 . Parts Built . | . . . Authchips . | . . . Time . | . . . Total Part Build Rating . | . . . Parts Repaired 2 | . 2 . Time 52 | . 52 . Parts Recycled . | . . . Recycled Matter . | . . . Retrieved Matter . | . . . Retrieved Components . | . . . Parts Scanalyzed . | . . . Part Schematics Acquired . | . . . Parts Damaged . | . . . Bothacking | -11 -10 -10 ------------ Run | Yrd Mat Sub Used RIF Installer . | . . . Robots Hacked . | . . . Non-combat . | . . . Combat . | . . . Robot Hacks Applied . | . . . Relay Couplers Released . | . . . Fabnet Peak Effective % . | . . . Robots Rewired . | . . . Allies Hacked . | . . . Hacks Repelled . | . . . Allies | -11 -10 -10 -------- Run | Yrd Mat Sub Total Allies . | . . . Largest Group . | . . . Highest-Rated Group . | . . . Highest-Rated Ally . | . . . Total Orders . | . . . Ally Attacks . | . . . Total Damage . | . . . Kills . | . . . Allies Corrupted . | . . . Allies Melted . | . . . Intel | -11 -10 -10 ------- Run | Yrd Mat Sub Robot Analysis Total 1 | . 1 . Derelict Logs Recovered . | . . . Drone Launches . | . . . Drone Recoveries . | . . . Exploration | -11 -10 -10 ------------- Run | Yrd Mat Sub Turns Passed 2446 | 264 1516 666 Spaces Moved 1824 | 201 1077 546 Core 10 | 10 . . Treads . | . . . Legs 44 | 44 . . Wheels 1770 | 147 1077 546 Hover . | . . . Flight . | . . . Fastest Speed 50 | 50 80 95 Average Speed 92 | 87 91 95 Slowest Speed 120 | 120 110 95 Overloaded Moves . | . . . Propulsion Burnouts . | . . . Robots Hopped . | . . . Cave-ins Triggered . | . . . Exploration Rate (%) 34 | 6 84 13 Regions Visited 2 Branch Regions 1 Pre-discovered Areas . | . . . Known Exits Taken 1 | . 1 . Unknown Exits Taken 1 | 1 . . Scrap Searched . | . . . Spaces Dug 2 | . 2 . Terrain Destroyed 110 | . 2 108 Melee 2 | . 2 . Projectile . | . . . AOE 108 | . . 108 Terrain Rammed . | . . . Walls Destroyed . | . . . Machines Disabled . | . . . Actions | -11 -10 -10 --------- Run | Yrd Mat Sub Total 2383 | 252 1509 622 Wait 351 | 1 331 19 Move 1822 | 200 1076 546 Hop . | . . . Pick Up 45 | 17 23 5 Fast Attach 4 | 4 . . Attach 11 | 5 3 3 Detach . | . . . Swap 16 | . 8 8 Drop 23 | 6 14 3 Fire 91 | 19 50 22 Melee 19 | . 3 16 Ram 1 | . 1 . Kick . | . . . Crush . | . . . Escape Stasis . | . . . Rewire . | . . . Trap . | . . . Miscellaneous . | . . . Route ------- -11/Scrapyard -10/Materials (discovered 5 exits: *Mat x3 / *Min / *Sub) -10/Subcaves History --------- Turn | Location | Event 48 | -11/Scrapyard | Discovered new exit (range 15) 265 | -11/Scrapyard | Entered Materials 302 | -10/Materials | Build established: Mutant 472 | -10/Materials | Discovered new exit (range 15) 722 | -10/Materials | Discovered new exit (range 15) 1039 | -10/Materials | Discovered new exit (range 16) 1099 | -10/Materials | Repaired Med. Laser 1127 | -10/Materials | Repaired Wheel 1228 | -10/Materials | Identified exit to Materials 1228 | -10/Materials | Identified exit to Mines 1228 | -10/Materials | Identified exit to Subcaves 1273 | -10/Materials | Loaded intel: 1 repair station location 1310 | -10/Materials | Learned location of 1 exit from Recycling 1316 | -10/Materials | Discovered exit to Materials (range 15) 1354 | -10/Materials | Learned Recycling recycling unit intel 1364 | -10/Materials | Learned location of 1 exit from Storage 1384 | -10/Materials | Learned 4 Subcaves zone layouts 1454 | -10/Materials | Learned location of 2 exits from Materials 1781 | -10/Materials | Entered Subcaves 1855 | -10/Subcaves | A swath of the cavern ceiling suddenly collapsed 2224 | -10/Subcaves | Core integrity fell below 50% 2439 | -10/Subcaves | Ambushed by Subdweller buried in earth 2442 | -10/Subcaves | Core integrity fell below 20% 2447 | -10/Subcaves | Destroyed by KQ-QT0(R) with Subdweller Shrapnel Launcher Last Messages --------------- 02267_ Med. Laser destroyed. 02267_ Destroyed Med. Laser. 02270_ Acquired 6 matter. 02271_ Acquired 8 matter. 02273_ Acquired Sub. Beam Cannon. 02274_ The unstable cave ceiling collapses. 02274_ Extracted 2 energy. 02280_ The unstable cave ceiling collapses. 02361_ System corrupted: Matter fused (-5). 02380_ Subatomizers dissect the Sub. Power Source. 02393_ DOL,>ENIF4XCLY0OQHTMOF4LXTNFGV 02393_ Subatomizers dissect the Sub. Power Source, destroying it. 02440_ KQ-QT0(R): "GOODGOOD!" 02441_ Grenade Launcher destroyed. 02441_ Wheel destroyed. 02443_ Lgt. Ion Engine destroyed. 02446_ The unstable cave ceiling collapses. 02447_ Med. Laser destroyed. Map ----- +----------------------------------------------------+ | ?????? ##????????????????????????????? | | ?????? #????????????????????????????? | | ??????###### #????????????????????????????? | | ??????#????## ##????????????????????????????? | | ?????????##### ###?????????????????????? ??????? | | ????????## ## #?????????????????????### ??????? | | ???????## ### #?????????????????????# ??????? | | ???????# # ##??????????????????### ""??????? | | ???????#### #??????????????????# "??????? | | ??????????# #???????????????????# ##?????? | | ??????????## #????????????????????# "##????? | | ???????###?## ##???????????????????## """##???? | | ??????## #### ####?????????????????# "" "#???? | | ?????? #?????????????????# " "#???? | | ?????? ##????????????????## " ##???? | | ??????### ## ##????????????????## " ###????? | | ???????????????????????????????????## " ####???? | | ????????????????######????########## " ##??? | | ????????????????# ##??# #R< # #??? | | ????????????????# # ??? ##<"&R # ###??? | | ????????????????# #####R"" ## ##????? | | ????????????????# R ##< <## ##?????? | | ????????????????# ; # ##??????? | | ?????????????????# &;;# ####?????? | | ????????????????????# #### ### ##????? | | ????????????????????# @ ## # #????? | | ????????????????????# ### #????? | | ????????????????????# ;; ## # # #????? | | ????????????????????## ### # ## #????? | | ????????????????????#; ; #### # #????? | | ????????????????????### ;## ## ####????? | | ??????????????????????#;#"# ## ! ## #?????? | | ??????????????????????#;#" " # & ! # ###????? | | ??????????????????????#; "## & =## #????? | | ??????????????????????######## & # #????? | | ?????????????????????????????## ## ##????? | | ????????????????????####??????# # #####??? | | ????????????????????# ###????# ## ## #??? | | ????????????????????# ##???# #??? | | ????????????????????# ##### #??? | | ????????????????????## ##??? | | ?????????????????????### """ ##???? | | ???????????????????????##"""" #####????? | | ????????????????????????# #????????? | | ????????????????????????# ###### #?##?????? | | ????????????????????????# &! ##??# ## ##????? | | ????????????????????????# !%& #??## #????? | | ????????????????????????## [ # ##???# #????? | | ????????????????????????## ## ##?## #????? | | ?????????????????????###### & ### ##????? | +----------------------------------------------------+ Best States ------------- Heat Dissipation 25 Energy Generation 10 Energy Capacity 250 Matter Stores 300 Matter Capacity 300 Sight Range 16 Terrain Scan Density 10 Evasion (%) 55 Authchip Count 4 Item Schematics ----------------- Propulsion Shielding | -10/Materials | Hacked Lgt. Armor Plating | -10/Materials | Hacked Lrg. Matter Pod | -10/Materials | Hacked Seismic Detector | -10/Materials | Hacked Robot Schematics ------------------ None Fabricated ------------ Nothing Alien Tech Used ----------------- None Achievements -------------- None Challenges ------------ None Game ------ Seed FactoryDisassembledGenerator Manual? 0 Play Time 00:40:15 Cumulative 38.6 hours Start 2024.11.12 @ 16:16:31 End 2024.11.12 @ 16:54:57 Sessions 1 Manual Loads 0 Difficulty Rogue Special Mode None Game No. 77 Rogue 77 Adventurer 0 Explorer 0 Win Type - Total 0 Types 0/0/0/0/0/0/0/0/0 Lore% 15 Gallery% 26 Achievement% 24 Wizard Run 0 Options --------- Layout 1 ASCII 0 Keyboard 0 Movement Arrows Keybinds 0 Fullscreen 1 Font 24/Smallcaps Map View 50x40 Zoom Use 1% Tactical HUD 1 Map Filters NONE Filters NONE Steam 1 RUN: 27ecb21a-6482-42fc-99c1-c44d014e060b